[Event "Titled Tuesday Blitz October 11 Late 2022"]
[White "Chigaev, Maksim"]
[Black "Kouskoutis, Georgios-Alexandros"]
[WhiteFideId "4108116"]
[BlackFideId "4234049"]
[WhiteElo "2537"]
[BlackElo "2187"]
[Result "0-1"]
[Round "03"]
[TimeControl "180+1"]
[Date "2022.10.12"]
[WhiteClock "0:00:02"]
[BlackClock "0:00:05"]

1. Nf3 {[%clk 0:03:00]}  d5 {[%clk 0:02:59]} 2. c4 {[%clk 0:03:01]}  d4 {[%clk 0:02:59]} 3. b4 {[%clk 0:03:01]}  f6 {[%clk 0:02:53]} 4. e3 {[%clk 0:03:00]}  dxe3 {[%clk 0:02:44]} 5. fxe3 {[%clk 0:03:01]}  e5 {[%clk 0:02:42]} 6. a3 {[%clk 0:02:45]}  e4 {[%clk 0:02:16]} 7. Nd4 {[%clk 0:02:44]}  f5 {[%clk 0:02:09]} 8. Bb2 {[%clk 0:02:40]}  Nf6 {[%clk 0:02:09]} 9. Be2 {[%clk 0:02:37]}  g6 {[%clk 0:02:05]} 10. c5 {[%clk 0:02:32]}  Bg7 {[%clk 0:01:59]} 11. Qb3 {[%clk 0:02:32]}  Nc6 {[%clk 0:01:33]} 12. Nxc6 {[%clk 0:02:18]}  bxc6 {[%clk 0:01:34]} 13. Bc4 {[%clk 0:02:18]}  Qe7 {[%clk 0:01:27]} 14. Nc3 {[%clk 0:02:18]}  Ng4 {[%clk 0:01:15]} 15. h3 {[%clk 0:01:32]}  Qh4+ {[%clk 0:01:04]} 16. Kd1 {[%clk 0:01:33]}  Nf2+ {[%clk 0:00:50]} 17. Kc2 {[%clk 0:01:32]}  Nxh1 {[%clk 0:00:50]} 18. Rxh1 {[%clk 0:01:33]}  Qe7 {[%clk 0:00:48]} 19. Rf1 {[%clk 0:01:23]}  a5 {[%clk 0:00:44]} 20. Qa4 {[%clk 0:01:19]}  Bd7 {[%clk 0:00:41]} 21. g4 {[%clk 0:01:19]}  Rf8 {[%clk 0:00:32]} 22. gxf5 {[%clk 0:01:19]}  Rxf5 {[%clk 0:00:33]} 23. Rxf5 {[%clk 0:01:02]}  gxf5 {[%clk 0:00:34]} 24. Ba2 {[%clk 0:01:02]}  Be5 {[%clk 0:00:26]} 25. Qb3 {[%clk 0:00:56]}  O-O-O {[%clk 0:00:20]} 26. Qc4 {[%clk 0:00:39]}  Kb7 {[%clk 0:00:17]} 27. bxa5 {[%clk 0:00:31]}  Ra8 {[%clk 0:00:18]} 28. a4 {[%clk 0:00:23]}  Kc8 {[%clk 0:00:16]} 29. a6 {[%clk 0:00:23]}  f4 {[%clk 0:00:10]} 30. Qxe4 {[%clk 0:00:15]}  fxe3 {[%clk 0:00:08]} 31. dxe3 {[%clk 0:00:10]}  Qxc5 {[%clk 0:00:06]} 32. Bc4 {[%clk 0:00:05]}  Bxc3 {[%clk 0:00:04]} 33. Kxc3 {[%clk 0:00:06]}  Qa5+ {[%clk 0:00:04]} 34. Kd4 {[%clk 0:00:02]}  Qb6+ {[%clk 0:00:04]} 35. Kc3 {[%clk 0:00:03]}  Qa5+ {[%clk 0:00:03]} 36. Kd4 {[%clk 0:00:03]}  Qb4 {[%clk 0:00:04]} 37. Bc3 {[%clk 0:00:02]}  Qd6+ {[%clk 0:00:04]} 38. Bd5 {[%clk 0:00:01]}  Qxd5+ {[%clk 0:00:04]} 39. Qxd5 {[%clk 0:00:02]}  cxd5 {[%clk 0:00:05]} 0-1


[Site "https://www.chess.com"]

[Event "Titled Tuesday Blitz October 11 Late 2022"]
[White "Djordjevic, Dejan N"]
[Black "Gilmanov, Mansur"]
[WhiteFideId "913316"]
[BlackFideId "4166868"]
[WhiteElo "2262"]
[BlackElo "2377"]
[Result "0-1"]
[Round "03"]
[TimeControl "180+1"]
[Date "2022.10.12"]
[WhiteClock "0:00:03"]
[BlackClock "0:00:43"]

1. e4 {[%clk 0:03:00]}  d5 {[%clk 0:02:54]} 2. exd5 {[%clk 0:03:00]}  Qxd5 {[%clk 0:02:55]} 3. d4 {[%clk 0:03:00]}  c5 {[%clk 0:02:53]} 4. Nf3 {[%clk 0:03:00]}  Nc6 {[%clk 0:02:50]} 5. Nc3 {[%clk 0:02:44]}  Qh5 {[%clk 0:02:49]} 6. d5 {[%clk 0:02:32]}  Nd4 {[%clk 0:02:47]} 7. Nxd4 {[%clk 0:02:21]}  Qxd1+ {[%clk 0:02:47]} 8. Kxd1 {[%clk 0:02:19]}  cxd4 {[%clk 0:02:47]} 9. Nb5 {[%clk 0:02:20]}  Bg4+ {[%clk 0:02:38]} 10. f3 {[%clk 0:02:19]}  O-O-O {[%clk 0:02:38]} 11. fxg4 {[%clk 0:02:17]}  Rxd5 {[%clk 0:02:39]} 12. Nxa7+ {[%clk 0:02:15]}  Kb8 {[%clk 0:02:36]} 13. Nb5 {[%clk 0:02:15]}  Nf6 {[%clk 0:02:33]} 14. h3 {[%clk 0:02:15]}  e5 {[%clk 0:02:33]} 15. a4 {[%clk 0:02:12]}  Bc5 {[%clk 0:02:28]} 16. Bc4 {[%clk 0:02:11]}  Rd7 {[%clk 0:02:27]} 17. Rf1 {[%clk 0:02:05]}  Rf8 {[%clk 0:02:07]} 18. b3 {[%clk 0:01:47]}  Ne4 {[%clk 0:01:59]} 19. Bd3 {[%clk 0:01:29]}  Nc3+ {[%clk 0:01:42]} 20. Nxc3 {[%clk 0:01:00]}  dxc3 {[%clk 0:01:43]} 21. Ke1 {[%clk 0:00:57]}  e4 {[%clk 0:01:42]} 22. Bc4 {[%clk 0:00:55]}  g6 {[%clk 0:01:36]} 23. g5 {[%clk 0:00:51]}  Rfd8 {[%clk 0:01:29]} 24. Bf4+ {[%clk 0:00:44]}  Ka7 {[%clk 0:01:29]} 25. Be2 {[%clk 0:00:44]}  e3 {[%clk 0:01:24]} 26. Rf3 {[%clk 0:00:38]}  Rd2 {[%clk 0:01:24]} 27. Bxe3 {[%clk 0:00:36]}  Bxe3 {[%clk 0:01:24]} 28. Rxe3 {[%clk 0:00:36]}  Rxc2 {[%clk 0:01:25]} 29. Rd1 {[%clk 0:00:35]}  Rc8 {[%clk 0:01:25]} 30. Re7 {[%clk 0:00:25]}  Rb2 {[%clk 0:01:25]} 31. Bc4 {[%clk 0:00:24]}  Rxg2 {[%clk 0:01:20]} 32. Rc1 {[%clk 0:00:19]}  c2 {[%clk 0:01:17]} 33. Rxb7+ {[%clk 0:00:14]}  Ka8 {[%clk 0:01:14]} 34. Re7 {[%clk 0:00:13]}  Rd8 {[%clk 0:01:14]} 35. Rxc2 {[%clk 0:00:06]}  Rxc2 {[%clk 0:01:12]} 36. Rxf7 {[%clk 0:00:07]}  Rg2 {[%clk 0:00:52]} 37. Rxh7 {[%clk 0:00:06]}  Rxg5 {[%clk 0:00:51]} 38. h4 {[%clk 0:00:05]}  Re5+ {[%clk 0:00:45]} 39. Kf2 {[%clk 0:00:04]}  Rf8+ {[%clk 0:00:43]} 40. Kg3 {[%clk 0:00:03]}  Re1 {[%clk 0:00:43]} 0-1


[Site "https://www.chess.com"]

[Event "Titled Tuesday Blitz October 11 Late 2022"]
[White "Domingo Nunez, Ruben"]
[Black "Huber, Benedikt"]
[WhiteFideId "22245570"]
[BlackFideId "12923583"]
[WhiteElo "2406"]
[BlackElo "2199"]
[Result "1-0"]
[Round "03"]
[TimeControl "180+1"]
[Date "2022.10.12"]
[WhiteClock "0:00:12"]
[BlackClock "0:00:12"]

1. Nf3 {[%clk 0:02:56]}  Nf6 {[%clk 0:02:58]} 2. b3 {[%clk 0:02:55]}  c5 {[%clk 0:02:58]} 3. Bb2 {[%clk 0:02:54]}  b6 {[%clk 0:02:58]} 4. g3 {[%clk 0:02:53]}  Bb7 {[%clk 0:02:58]} 5. Bg2 {[%clk 0:02:54]}  e6 {[%clk 0:02:58]} 6. O-O {[%clk 0:02:55]}  Be7 {[%clk 0:02:59]} 7. c4 {[%clk 0:02:53]}  O-O {[%clk 0:02:59]} 8. Nc3 {[%clk 0:02:53]}  d6 {[%clk 0:02:58]} 9. Rc1 {[%clk 0:02:53]}  Nbd7 {[%clk 0:02:58]} 10. d4 {[%clk 0:02:50]}  cxd4 {[%clk 0:02:58]} 11. Qxd4 {[%clk 0:02:50]}  a6 {[%clk 0:02:55]} 12. Rfd1 {[%clk 0:02:50]}  Qc7 {[%clk 0:02:54]} 13. h4 {[%clk 0:02:46]}  Rfd8 {[%clk 0:02:50]} 14. Bh3 {[%clk 0:02:28]}  Rac8 {[%clk 0:02:44]} 15. Qe3 {[%clk 0:02:23]}  Qb8 {[%clk 0:02:31]} 16. Bxe6 {[%clk 0:02:07]}  fxe6 {[%clk 0:02:32]} 17. Qxe6+ {[%clk 0:02:08]}  Kf8 {[%clk 0:02:32]} 18. Ng5 {[%clk 0:02:08]}  Ne5 {[%clk 0:02:21]} 19. f4 {[%clk 0:01:39]}  h6 {[%clk 0:02:09]} 20. fxe5 {[%clk 0:01:30]}  hxg5 {[%clk 0:02:10]} 21. exf6 {[%clk 0:01:30]}  Bxf6 {[%clk 0:02:10]} 22. hxg5 {[%clk 0:01:30]}  Re8 {[%clk 0:01:36]} 23. Qf5 {[%clk 0:00:55]}  Re5 {[%clk 0:01:24]} 24. Qf4 {[%clk 0:00:55]}  Rxg5 {[%clk 0:01:17]} 25. Nd5 {[%clk 0:00:56]}  Bxd5 {[%clk 0:01:10]} 26. Bxf6 {[%clk 0:00:55]}  Rg6 {[%clk 0:01:02]} 27. Bxg7+ {[%clk 0:00:20]}  Kxg7 {[%clk 0:01:02]} 28. Rxd5 {[%clk 0:00:21]}  Rf8 {[%clk 0:00:59]} 29. Qd4+ {[%clk 0:00:21]}  Kg8 {[%clk 0:00:59]} 30. Rh5 {[%clk 0:00:18]}  Rxg3+ {[%clk 0:00:52]} 31. Kh2 {[%clk 0:00:18]}  Rg7 {[%clk 0:00:50]} 32. Rg1 {[%clk 0:00:18]}  Qc7 {[%clk 0:00:40]} 33. Qd5+ {[%clk 0:00:16]}  Qf7 {[%clk 0:00:37]} 34. Rhg5 {[%clk 0:00:11]}  Rxg5 {[%clk 0:00:29]} 35. Rxg5+ {[%clk 0:00:12]}  Kh8 {[%clk 0:00:14]} 36. Qd4+ {[%clk 0:00:12]}  Qf6 {[%clk 0:00:12]} 37. Qh4+ {[%clk 0:00:12]} 1-0


[Site "https://www.chess.com"]

[Event "Titled Tuesday Blitz October 11 Late 2022"]
[White "Eisa Mohmood, Alkhoori"]
[Black "Yurovskykh, Oleksandr"]
[WhiteFideId "9316116"]
[BlackFideId "14134020"]
[WhiteElo "1245"]
[BlackElo "2303"]
[Result "1-0"]
[Round "03"]
[TimeControl "180+1"]
[Date "2022.10.12"]
[WhiteClock "0:01:03"]
[BlackClock "0:00:17"]

1. e4 {[%clk 0:02:58]}  d5 {[%clk 0:03:00]} 2. exd5 {[%clk 0:02:56]}  Qxd5 {[%clk 0:03:00]} 3. Nc3 {[%clk 0:02:55]}  Qd8 {[%clk 0:02:56]} 4. d4 {[%clk 0:02:55]}  Nf6 {[%clk 0:02:54]} 5. Bc4 {[%clk 0:02:48]}  a6 {[%clk 0:02:53]} 6. Bg5 {[%clk 0:02:46]}  e6 {[%clk 0:02:33]} 7. Nf3 {[%clk 0:02:37]}  Be7 {[%clk 0:02:31]} 8. Qe2 {[%clk 0:02:31]}  O-O {[%clk 0:02:30]} 9. O-O-O {[%clk 0:02:29]}  b5 {[%clk 0:02:30]} 10. Bd3 {[%clk 0:02:25]}  Bb7 {[%clk 0:02:30]} 11. h4 {[%clk 0:02:16]}  Nbd7 {[%clk 0:02:27]} 12. Rhg1 {[%clk 0:02:08]}  h6 {[%clk 0:02:22]} 13. Bxf6 {[%clk 0:02:03]}  Nxf6 {[%clk 0:02:18]} 14. Ne5 {[%clk 0:02:03]}  Bb4 {[%clk 0:02:03]} 15. g4 {[%clk 0:01:57]}  Bxc3 {[%clk 0:02:02]} 16. bxc3 {[%clk 0:01:55]}  Nd5 {[%clk 0:02:01]} 17. g5 {[%clk 0:01:48]}  Nxc3 {[%clk 0:01:45]} 18. Qe1 {[%clk 0:01:48]}  Nxd1 {[%clk 0:01:43]} 19. gxh6 {[%clk 0:01:45]}  g6 {[%clk 0:01:08]} 20. Bxg6 {[%clk 0:01:35]}  fxg6 {[%clk 0:01:01]} 21. Rxg6+ {[%clk 0:01:32]}  Kh8 {[%clk 0:01:00]} 22. Nf7+ {[%clk 0:01:28]}  Rxf7 {[%clk 0:00:56]} 23. Qe5+ {[%clk 0:01:29]}  Kh7 {[%clk 0:00:45]} 24. Rg7+ {[%clk 0:01:27]}  Kxh6 {[%clk 0:00:44]} 25. Rxf7 {[%clk 0:01:25]}  Qxh4 {[%clk 0:00:33]} 26. Qxe6+ {[%clk 0:01:18]}  Kg5 {[%clk 0:00:26]} 27. Qe5+ {[%clk 0:01:09]}  Kg6 {[%clk 0:00:19]} 28. Qg7+ {[%clk 0:01:04]}  Kh5 {[%clk 0:00:19]} 29. Rf5+ {[%clk 0:01:04]}  Qg5+ {[%clk 0:00:17]} 30. Qxg5# {[%clk 0:01:03]} 1-0


[Site "https://www.chess.com"]

[Event "Titled Tuesday Blitz October 11 Late 2022"]
[White "Evdokimov, Alexey"]
[Black "P., Komal Kishore"]
[WhiteFideId "24162450"]
[BlackFideId "5016703"]
[WhiteElo "2154"]
[BlackElo "2099"]
[Result "1/2-1/2"]
[Round "03"]
[TimeControl "180+1"]
[Date "2022.10.12"]
[WhiteClock "0:00:07"]
[BlackClock "0:00:10"]

1. e4 {[%clk 0:03:00]}  c6 {[%clk 0:02:59]} 2. d4 {[%clk 0:03:00]}  d5 {[%clk 0:03:00]} 3. exd5 {[%clk 0:03:00]}  cxd5 {[%clk 0:03:00]} 4. Bd3 {[%clk 0:03:01]}  Nc6 {[%clk 0:03:01]} 5. c3 {[%clk 0:02:59]}  Nf6 {[%clk 0:03:00]} 6. Nd2 {[%clk 0:02:55]}  Bg4 {[%clk 0:02:57]} 7. Ngf3 {[%clk 0:02:53]}  e6 {[%clk 0:02:56]} 8. O-O {[%clk 0:02:52]}  Be7 {[%clk 0:02:55]} 9. Re1 {[%clk 0:02:48]}  O-O {[%clk 0:02:55]} 10. h3 {[%clk 0:02:49]}  Bh5 {[%clk 0:02:55]} 11. Qc2 {[%clk 0:02:49]}  Rc8 {[%clk 0:02:51]} 12. a3 {[%clk 0:02:48]}  Bg6 {[%clk 0:02:50]} 13. Bxg6 {[%clk 0:02:45]}  hxg6 {[%clk 0:02:51]} 14. Qd3 {[%clk 0:02:43]}  a6 {[%clk 0:02:44]} 15. Ne5 {[%clk 0:02:43]}  b5 {[%clk 0:02:41]} 16. Ndf3 {[%clk 0:02:42]}  Na5 {[%clk 0:02:41]} 17. Bg5 {[%clk 0:02:36]}  Nc4 {[%clk 0:02:40]} 18. Re2 {[%clk 0:02:35]}  Ne4 {[%clk 0:02:37]} 19. Bxe7 {[%clk 0:02:34]}  Qxe7 {[%clk 0:02:36]} 20. a4 {[%clk 0:02:34]}  Ned6 {[%clk 0:02:15]} 21. axb5 {[%clk 0:02:32]}  axb5 {[%clk 0:02:15]} 22. Rae1 {[%clk 0:02:25]}  Nxe5 {[%clk 0:02:15]} 23. Nxe5 {[%clk 0:02:24]}  Nc4 {[%clk 0:02:15]} 24. f4 {[%clk 0:02:07]}  Rc7 {[%clk 0:02:14]} 25. Kh2 {[%clk 0:02:06]}  Rb8 {[%clk 0:02:14]} 26. Qg3 {[%clk 0:02:00]}  Nxe5 {[%clk 0:02:13]} 27. Rxe5 {[%clk 0:01:51]}  Qd6 {[%clk 0:02:01]} 28. h4 {[%clk 0:01:47]}  b4 {[%clk 0:01:59]} 29. h5 {[%clk 0:01:47]}  gxh5 {[%clk 0:01:52]} 30. f5 {[%clk 0:01:42]}  h4 {[%clk 0:01:43]} 31. Qf4 {[%clk 0:00:59]}  f6 {[%clk 0:01:42]} 32. R5e4 {[%clk 0:00:38]}  Qxf4+ {[%clk 0:01:41]} 33. Rxf4 {[%clk 0:00:38]}  bxc3 {[%clk 0:01:38]} 34. bxc3 {[%clk 0:00:38]}  exf5 {[%clk 0:01:35]} 35. Rxf5 {[%clk 0:00:38]}  Rxc3 {[%clk 0:01:35]} 36. Rxd5 {[%clk 0:00:37]}  Rb2 {[%clk 0:01:33]} 37. Re4 {[%clk 0:00:17]}  Rg3 {[%clk 0:01:31]} 38. Rxh4 {[%clk 0:00:09]}  Rgxg2+ {[%clk 0:01:23]} 39. Kh1 {[%clk 0:00:09]}  Rgd2 {[%clk 0:01:22]} 40. Rg4 {[%clk 0:00:08]}  Rb1+ {[%clk 0:01:06]} 41. Rg1 {[%clk 0:00:08]}  Rb3 {[%clk 0:01:05]} 42. Rd8+ {[%clk 0:00:07]}  Kh7 {[%clk 0:01:05]} 43. Rg4 {[%clk 0:00:06]}  Rh3+ {[%clk 0:00:58]} 44. Kg1 {[%clk 0:00:06]}  Ra3 {[%clk 0:00:57]} 45. Rf4 {[%clk 0:00:05]}  Kg6 {[%clk 0:00:53]} 46. Rd5 {[%clk 0:00:04]}  Kf7 {[%clk 0:00:44]} 47. Rb5 {[%clk 0:00:03]}  Rad3 {[%clk 0:00:36]} 48. Rb7+ {[%clk 0:00:03]}  Ke6 {[%clk 0:00:32]} 49. Rxg7 {[%clk 0:00:03]}  Rxd4 {[%clk 0:00:30]} 50. Rxd4 {[%clk 0:00:03]}  Rxd4 {[%clk 0:00:30]} 51. Kf2 {[%clk 0:00:03]}  Rf4+ {[%clk 0:00:29]} 52. Ke3 {[%clk 0:00:03]}  Ra4 {[%clk 0:00:27]} 53. Rb7 {[%clk 0:00:03]}  Ra5 {[%clk 0:00:24]} 54. Kf4 {[%clk 0:00:03]}  Ra4+ {[%clk 0:00:23]} 55. Kf3 {[%clk 0:00:04]}  Kf5 {[%clk 0:00:22]} 56. Rb5+ {[%clk 0:00:03]}  Kg6 {[%clk 0:00:22]} 57. Rb3 {[%clk 0:00:03]}  f5 {[%clk 0:00:22]} 58. Rc3 {[%clk 0:00:03]}  Kg5 {[%clk 0:00:22]} 59. Rb3 {[%clk 0:00:04]}  Rf4+ {[%clk 0:00:21]} 60. Kg3 {[%clk 0:00:04]}  Rc4 {[%clk 0:00:20]} 61. Ra3 {[%clk 0:00:03]}  Rc5 {[%clk 0:00:16]} 62. Kf3 {[%clk 0:00:03]}  Rd5 {[%clk 0:00:11]} 63. Rb3 {[%clk 0:00:04]}  Ra5 {[%clk 0:00:11]} 64. Rc3 {[%clk 0:00:04]}  Ra4 {[%clk 0:00:10]} 65. Rb3 {[%clk 0:00:04]}  Ra1 {[%clk 0:00:09]} 66. Kg3 {[%clk 0:00:04]}  f4+ {[%clk 0:00:07]} 67. Kf3 {[%clk 0:00:04]}  Rf1+ {[%clk 0:00:08]} 68. Kg2 {[%clk 0:00:04]}  Rd1 {[%clk 0:00:07]} 69. Rb5+ {[%clk 0:00:04]}  Kg4 {[%clk 0:00:08]} 70. Rb3 {[%clk 0:00:05]}  Rd2+ {[%clk 0:00:08]} 71. Kf1 {[%clk 0:00:05]}  f3 {[%clk 0:00:08]} 72. Rb8 {[%clk 0:00:05]}  Rd5 {[%clk 0:00:08]} 73. Rg8+ {[%clk 0:00:04]}  Kf4 {[%clk 0:00:08]} 74. Rf8+ {[%clk 0:00:05]}  Ke4 {[%clk 0:00:07]} 75. Re8+ {[%clk 0:00:05]}  Re5 {[%clk 0:00:07]} 76. Rxe5+ {[%clk 0:00:05]}  Kxe5 {[%clk 0:00:08]} 77. Kf2 {[%clk 0:00:05]}  Kf4 {[%clk 0:00:08]} 78. Kf1 {[%clk 0:00:05]}  Ke3 {[%clk 0:00:08]} 79. Ke1 {[%clk 0:00:05]}  Ke4 {[%clk 0:00:09]} 80. Kf2 {[%clk 0:00:06]}  Kf4 {[%clk 0:00:09]} 81. Kf1 {[%clk 0:00:06]}  Kg3 {[%clk 0:00:10]} 82. Kg1 {[%clk 0:00:07]}  f2+ {[%clk 0:00:10]} 83. Kf1 {[%clk 0:00:07]}  Kf3 {[%clk 0:00:10]} 1/2-1/2


[Site "https://www.chess.com"]

[Event "Titled Tuesday Blitz October 11 Late 2022"]
[White "Fernandez Hernandez, Gerardo"]
[Black "Buchenau, Frank"]
[WhiteFideId "2207400"]
[BlackFideId "4604350"]
[WhiteElo "2152"]
[BlackElo "2157"]
[Result "0-1"]
[Round "03"]
[TimeControl "180+1"]
[Date "2022.10.12"]
[WhiteClock "0:00:01"]
[BlackClock "0:00:13"]

1. e4 {[%clk 0:02:58]}  e6 {[%clk 0:02:50]} 2. d3 {[%clk 0:02:58]}  d5 {[%clk 0:02:49]} 3. Nd2 {[%clk 0:02:58]}  Nf6 {[%clk 0:02:46]} 4. Ngf3 {[%clk 0:02:58]}  b6 {[%clk 0:02:46]} 5. g3 {[%clk 0:02:54]}  dxe4 {[%clk 0:02:45]} 6. dxe4 {[%clk 0:02:54]}  Bb7 {[%clk 0:02:45]} 7. Qe2 {[%clk 0:02:50]}  Ba6 {[%clk 0:02:44]} 8. c4 {[%clk 0:02:49]}  Nc6 {[%clk 0:02:42]} 9. Bg2 {[%clk 0:02:40]}  e5 {[%clk 0:02:42]} 10. O-O {[%clk 0:02:34]}  Bc5 {[%clk 0:02:42]} 11. a3 {[%clk 0:02:20]}  O-O {[%clk 0:02:37]} 12. b4 {[%clk 0:02:17]}  Nd4 {[%clk 0:02:36]} 13. Qd3 {[%clk 0:02:13]}  Nxf3+ {[%clk 0:02:30]} 14. Qxf3 {[%clk 0:02:14]}  Bd4 {[%clk 0:02:27]} 15. Rb1 {[%clk 0:02:02]}  Bc8 {[%clk 0:02:23]} 16. Qb3 {[%clk 0:01:54]}  Be6 {[%clk 0:02:13]} 17. Nf3 {[%clk 0:01:37]}  b5 {[%clk 0:02:12]} 18. Nxd4 {[%clk 0:01:37]}  Qxd4 {[%clk 0:02:06]} 19. Be3 {[%clk 0:01:34]}  Qxc4 {[%clk 0:02:03]} 20. Qxc4 {[%clk 0:01:32]}  Bxc4 {[%clk 0:02:03]} 21. Rfc1 {[%clk 0:01:24]}  a5 {[%clk 0:01:50]} 22. Bc5 {[%clk 0:01:18]}  Rfd8 {[%clk 0:01:48]} 23. Rd1 {[%clk 0:01:16]}  axb4 {[%clk 0:01:45]} 24. axb4 {[%clk 0:01:05]}  Bd3 {[%clk 0:01:39]} 25. Ra1 {[%clk 0:00:56]}  Rxa1 {[%clk 0:01:33]} 26. Rxa1 {[%clk 0:00:56]}  Bxe4 {[%clk 0:01:33]} 27. Ra7 {[%clk 0:00:48]}  Rd1+ {[%clk 0:01:21]} 28. Bf1 {[%clk 0:00:48]}  h5 {[%clk 0:01:16]} 29. Ra3 {[%clk 0:00:22]}  Nd5 {[%clk 0:00:43]} 30. f3 {[%clk 0:00:20]}  Bf5 {[%clk 0:00:42]} 31. Kf2 {[%clk 0:00:18]}  c6 {[%clk 0:00:39]} 32. Ra8+ {[%clk 0:00:14]}  Kh7 {[%clk 0:00:39]} 33. Ra6 {[%clk 0:00:11]}  Rd2+ {[%clk 0:00:35]} 34. Ke1 {[%clk 0:00:09]}  Rxh2 {[%clk 0:00:32]} 35. Rxc6 {[%clk 0:00:09]}  e4 {[%clk 0:00:23]} 36. fxe4 {[%clk 0:00:06]}  Bxe4 {[%clk 0:00:23]} 37. Rd6 {[%clk 0:00:03]}  Nf6 {[%clk 0:00:21]} 38. Bxb5 {[%clk 0:00:02]}  Rb2 {[%clk 0:00:15]} 39. Bd3 {[%clk 0:00:01]}  Bxd3 {[%clk 0:00:13]} 40. Rxd3 {[%clk 0:00:02]}  Ne4 {[%clk 0:00:13]} 41. Be7 {[%clk 0:00:01]}  f5 {[%clk 0:00:13]} 0-1


[Site "https://www.chess.com"]

[Event "Titled Tuesday Blitz October 11 Late 2022"]
[White "Georgiadis, Ioannis"]
[Black "Balkum, Alexander"]
[WhiteFideId "4208900"]
[BlackFideId "2005069"]
[WhiteElo "2446"]
[BlackElo "2347"]
[Result "1-0"]
[Round "03"]
[TimeControl "180+1"]
[Date "2022.10.12"]
[WhiteClock "0:02:11"]
[BlackClock "0:00:27"]

1. e4 {[%clk 0:03:00]}  c5 {[%clk 0:02:59]} 2. Nf3 {[%clk 0:03:00]}  Nc6 {[%clk 0:02:59]} 3. Bb5 {[%clk 0:03:00]}  g6 {[%clk 0:02:59]} 4. O-O {[%clk 0:02:59]}  Bg7 {[%clk 0:02:59]} 5. Re1 {[%clk 0:02:59]}  Nf6 {[%clk 0:02:59]} 6. c3 {[%clk 0:03:00]}  O-O {[%clk 0:02:59]} 7. e5 {[%clk 0:02:59]}  Nd5 {[%clk 0:02:58]} 8. d4 {[%clk 0:03:00]}  cxd4 {[%clk 0:02:58]} 9. cxd4 {[%clk 0:02:58]}  Nc7 {[%clk 0:02:58]} 10. Bf1 {[%clk 0:02:56]}  d5 {[%clk 0:02:51]} 11. h3 {[%clk 0:02:56]}  f6 {[%clk 0:02:40]} 12. exf6 {[%clk 0:02:48]}  exf6 {[%clk 0:02:41]} 13. Nc3 {[%clk 0:02:48]}  Be6 {[%clk 0:02:39]} 14. Bf4 {[%clk 0:02:47]}  Bf7 {[%clk 0:02:38]} 15. Qb3 {[%clk 0:02:47]}  Na5 {[%clk 0:01:48]} 16. Qb4 {[%clk 0:02:40]}  Ne6 {[%clk 0:01:35]} 17. Bg3 {[%clk 0:02:32]}  b6 {[%clk 0:01:30]} 18. Rac1 {[%clk 0:02:29]}  Nc6 {[%clk 0:01:26]} 19. Qa4 {[%clk 0:02:29]}  Rc8 {[%clk 0:01:25]} 20. Nb5 {[%clk 0:02:28]}  Bh6 {[%clk 0:01:00]} 21. Rc3 {[%clk 0:02:24]}  Na5 {[%clk 0:00:40]} 22. Rxc8 {[%clk 0:02:13]}  Qxc8 {[%clk 0:00:41]} 23. Nd6 {[%clk 0:02:13]}  Qa8 {[%clk 0:00:27]} 24. Nxf7 {[%clk 0:02:11]} 1-0


[Site "https://www.chess.com"]

[Event "Titled Tuesday Blitz October 11 Late 2022"]
[White "Goryachkina, Aleksandra"]
[Black "Pasti, Aron"]
[WhiteFideId "4147103"]
[BlackFideId "785857"]
[WhiteElo "2484"]
[BlackElo "2250"]
[Result "0-1"]
[Round "03"]
[TimeControl "180+1"]
[Date "2022.10.12"]
[WhiteClock "0:00:04"]
[BlackClock "0:00:07"]

1. e4 {[%clk 0:02:59]}  c5 {[%clk 0:03:00]} 2. Nf3 {[%clk 0:02:59]}  e6 {[%clk 0:03:00]} 3. c3 {[%clk 0:02:59]}  d5 {[%clk 0:02:59]} 4. exd5 {[%clk 0:02:59]}  Qxd5 {[%clk 0:03:00]} 5. d4 {[%clk 0:02:59]}  Nc6 {[%clk 0:03:01]} 6. Be3 {[%clk 0:02:51]}  cxd4 {[%clk 0:02:59]} 7. Nxd4 {[%clk 0:02:50]}  Nxd4 {[%clk 0:02:54]} 8. Qxd4 {[%clk 0:02:46]}  Qxd4 {[%clk 0:02:53]} 9. Bxd4 {[%clk 0:02:46]}  Nf6 {[%clk 0:02:53]} 10. Be2 {[%clk 0:02:45]}  Be7 {[%clk 0:02:53]} 11. O-O {[%clk 0:02:44]}  O-O {[%clk 0:02:53]} 12. Bf3 {[%clk 0:02:41]}  Nd7 {[%clk 0:02:47]} 13. Nd2 {[%clk 0:02:39]}  e5 {[%clk 0:02:45]} 14. Be3 {[%clk 0:02:38]}  f5 {[%clk 0:02:45]} 15. Bd5+ {[%clk 0:02:28]}  Kh8 {[%clk 0:02:46]} 16. f3 {[%clk 0:02:27]}  Nf6 {[%clk 0:02:44]} 17. Bb3 {[%clk 0:02:27]}  Bd7 {[%clk 0:02:43]} 18. Nc4 {[%clk 0:02:26]}  e4 {[%clk 0:02:39]} 19. Ne5 {[%clk 0:02:18]}  Bb5 {[%clk 0:02:32]} 20. Rf2 {[%clk 0:02:13]}  Be8 {[%clk 0:02:22]} 21. Re1 {[%clk 0:02:02]}  Bd6 {[%clk 0:02:12]} 22. Bd4 {[%clk 0:02:01]}  Bh5 {[%clk 0:01:59]} 23. Bc2 {[%clk 0:01:21]}  Rae8 {[%clk 0:01:50]} 24. Nc4 {[%clk 0:01:21]}  Bc7 {[%clk 0:01:36]} 25. fxe4 {[%clk 0:01:17]}  fxe4 {[%clk 0:01:22]} 26. Ne3 {[%clk 0:01:09]}  Bg6 {[%clk 0:01:14]} 27. Ref1 {[%clk 0:01:05]}  Be5 {[%clk 0:00:55]} 28. Bxe5 {[%clk 0:00:38]}  Rxe5 {[%clk 0:00:55]} 29. h3 {[%clk 0:00:37]}  Rd8 {[%clk 0:00:53]} 30. Rd1 {[%clk 0:00:36]}  Rxd1+ {[%clk 0:00:51]} 31. Bxd1 {[%clk 0:00:36]}  h6 {[%clk 0:00:50]} 32. Bb3 {[%clk 0:00:36]}  Re7 {[%clk 0:00:48]} 33. Rd2 {[%clk 0:00:36]}  Nd7 {[%clk 0:00:38]} 34. Kf2 {[%clk 0:00:27]}  Ne5 {[%clk 0:00:37]} 35. Rd8+ {[%clk 0:00:27]}  Re8 {[%clk 0:00:25]} 36. Rxe8+ {[%clk 0:00:24]}  Bxe8 {[%clk 0:00:25]} 37. Bc2 {[%clk 0:00:23]}  Bc6 {[%clk 0:00:26]} 38. Ke2 {[%clk 0:00:22]}  g6 {[%clk 0:00:23]} 39. c4 {[%clk 0:00:17]}  Kg7 {[%clk 0:00:22]} 40. Kd2 {[%clk 0:00:16]}  Kf6 {[%clk 0:00:20]} 41. b4 {[%clk 0:00:13]}  a6 {[%clk 0:00:19]} 42. a4 {[%clk 0:00:12]}  b6 {[%clk 0:00:16]} 43. b5 {[%clk 0:00:09]}  axb5 {[%clk 0:00:12]} 44. cxb5 {[%clk 0:00:09]}  Bb7 {[%clk 0:00:13]} 45. Kc3 {[%clk 0:00:09]}  Kg5 {[%clk 0:00:07]} 46. Kd4 {[%clk 0:00:04]}  Kf4 {[%clk 0:00:07]} 47. g3+ {[%clk 0:00:04]}  Kf3 {[%clk 0:00:07]} 0-1


[Site "https://www.chess.com"]